[Event "EYCC O18-ch 2024"]
[Site "Prague"]
[Date "2024.08.24"]
[Round "3.12"]
[White "Paseka, Matyas"]
[Black "Levin, Guy"]
[Result "0-1"]
[ECO "B90"]
[WhiteElo "2281"]
[BlackElo "2436"]
[Annotator "RC"]
[PlyCount "82"]
[EventDate "2024.08.19"]
[EventType "swiss"]
[EventCountry "CZE"]
[SourceTitle "playchess.com"]
[Source "ChessBase"]
[SourceQuality "1"]
[TimeControl "5400+30"]

1. e4 {[%emt 0:00:04]} c5 {[%emt 0:00:04]} 2. Nf3 {[%emt 0:00:07]} d6 {[%emt 0:00:05]} 3. d4 {[%emt 0:00:06]} cxd4 {[%emt 0:00:04]} 4. Nxd4 {[%emt 0:00:05]} Nf6 {[%emt 0:00:08]} 5. Nc3 {[%emt 0:00:05]} a6 {[%emt 0:00:04]} 6. Be3 {[%emt 0:00:19]} e5 {[%emt 0:00:05]} 7. Nb3 {[%emt 0:00:05]} Be7 {[%emt 0:00:07]} 8. f3 {[%emt 0:00:07]} Be6 {[%emt 0:00:15]} 9. Qd2 {[%emt 0:00:07]} O-O {[%emt 0:00:11]} 10. O-O-O {[%emt 0:00:06]} Nbd7 {[%emt 0:00:16]} 11. g4 {[%emt 0:00:11]} b5 {[%emt 0:00:04]} 12. g5 {[%emt 0:00:08]} Nh5 {[%emt 0:00:04]} 13. Nd5 {[%emt 0:00:43]} Bxd5 {[%emt 0:00:06]} 14. exd5 {[%emt 0:00:05]} f6 {[%emt 0:00:21]} 15. gxf6 {[%emt 0:03:38]} Bxf6 {[%emt 0:00:09]} 16. Na5 {[%emt 0:01:34]} Qe8 {[%emt 0:01:38]} 17. Bd3 {[%emt 0:18:22]} Bd8 {[%emt 0:05:03]} 18. Nb7 {[%emt 0:03:19]} Qe7 {[%emt 0:05:28]} 19. Nxd8 {[%emt 0:10:29]} Qxd8 {[%emt 0:03:32]} 20. Qb4 {[%emt 0:01:35]} Qe7 {[%emt 0:04:32]} 21. Qg4 {[%emt 0:09:47]} Nf4 {[%emt 0:03:30]} 22. Bxf4 {[%emt 0:02:24]} Rxf4 {[%emt 0:02:42]} 23. Qe6+ {[%emt 0:00:11]} Rf7 {[%emt 0:04:04]} 24. Qh3 {[%emt 0:06:02]} g6 {[%emt 0:03:27]} 25. Rhg1 {[%emt 0:00:39]} Qf6 {[%emt 0:03:06]} 26. Be4 {[%emt 0:07:38]} Nc5 {[%emt 0:06:17]} 27. Rde1 {[%emt 0:03:49]} a5 {[%emt 0:03:19]} 28. Kb1 {[%emt 0:07:19]} b4 {[%emt 0:02:00]} 29. Qg4 {[%emt 0:01:52]} Kh8 {[%emt 0:08:41]} 30. h4 {[%emt 0:04:42]} Qf4 {[%emt 0:02:15]} 31. Qh3 {[%emt 0:00:47]} a4 {[%emt 0:01:57]} 32. h5 {[%emt 0:01:03]} g5 {[%emt 0:01:44]} 33. h6 {[%emt 0:02:36]} a3 {[%emt 0:03:42]} 34. Qg2 {[%emt 0:05:10]} Rg8 {[%emt 0:10:03]} 35. b3 {[%emt 0:03:42]} Rf6 {[%emt 0:02:18]} 36. Qe2 {[%emt 0:00:33]} Rxh6 {[%emt 0:02:40]} 37. Rh1 {[%emt 0:02:54]} Nxe4 {[%emt 0:03:54]} 38. fxe4 {[%emt 0:00:14]} Rxh1 {[%emt 0:00:11]} 39. Rxh1 {[%emt 0:00:03]} g4 {[%emt 0:00:20]} 40. Qc4 {[%emt 0:04:39]} g3 {[%emt 0:01:33]} 41. Qc7 {[%emt 0:00:29]} Qxe4 {[%emt 0:00:28]} 0-1

[Event "EYCC O18-ch 2024"]
[Site "Prague"]
[Date "2024.08.24"]
[Round "3.12"]
[White "Almeida, Joao Pedro Dias"]
[Black "Hercegovac, Neven"]
[Result "0-1"]
[ECO "B31"]
[WhiteElo "2086"]
[BlackElo "2278"]
[Annotator "RC"]
[PlyCount "68"]
[EventDate "2024.08.19"]
[EventType "swiss"]
[EventCountry "CZE"]
[SourceTitle "playchess.com"]
[Source "ChessBase"]
[SourceQuality "1"]
[TimeControl "5400+30"]

1. e4 {[%emt 0:00:04]} c5 {[%emt 0:00:05]} 2. Nf3 {[%emt 0:00:06]} Nc6 {[%emt 0:00:04]} 3. Bb5 {[%emt 0:00:05]} g6 {[%emt 0:00:05]} 4. Bxc6 {[%emt 0:00:05]} bxc6 {[%emt 0:00:03]} 5. d4 {[%emt 0:00:11]} cxd4 {[%emt 0:00:05]} 6. Qxd4 {[%emt 0:00:07]} f6 {[%emt 0:00:05]} 7. O-O {[%emt 0:00:20]} d6 {[%emt 0:00:04]} 8. c4 {[%emt 0:01:07]} c5 {[%emt 0:00:06]} 9. Qd3 {[%emt 0:00:34]} Bg7 {[%emt 0:00:06]} 10. Nc3 {[%emt 0:04:28]} Nh6 {[%emt 0:00:08]} 11. Nh4 {[%emt 0:03:18]} Rb8 {[%emt 0:01:59]} 12. Re1 {[%emt 0:08:45]} O-O {[%emt 0:00:46]} 13. f4 {[%emt 0:01:04]} f5 {[%emt 0:04:36]} 14. e5 {[%emt 0:01:50]} dxe5 {[%emt 0:02:35]} 15. Qxd8 {[%emt 0:01:51]} Rxd8 {[%emt 0:00:10]} 16. fxe5 {[%emt 0:00:19]} Rd4 {[%emt 0:09:25]} 17. Nf3 {[%emt 0:06:39]} Rxc4 {[%emt 0:01:06]} 18. Rd1 {[%emt 0:01:53]} Bb7 {[%emt 0:02:52]} 19. Rd7 {[%emt 0:01:38]} Ng4 {[%emt 0:00:57]} 20. Nd2 {[%emt 0:14:48]} Nxe5 {[%emt 0:01:02]} 21. Rxe7 {[%emt 0:00:51]} Rg4 {[%emt 0:01:02]} 22. g3 {[%emt 0:01:18]} Bf6 {[%emt 0:00:56]} 23. Rc7 {[%emt 0:02:45]} Bd8 {[%emt 0:00:22]} 24. Rxb7 {[%emt 0:01:04]} Rxb7 {[%emt 0:00:06]} 25. Nb3 {[%emt 0:00:13]} c4 {[%emt 0:03:03]} 26. Nc5 {[%emt 0:01:53]} Bb6 {[%emt 0:00:05]} 27. Be3 {[%emt 0:00:30]} Bxc5 {[%emt 0:00:17]} 28. Bxc5 {[%emt 0:00:46]} Rxb2 {[%emt 0:00:08]} 29. Bf2 {[%emt 0:00:28]} Nd3 {[%emt 0:01:51]} 30. Bxa7 {[%emt 0:02:45]} Rb7 {[%emt 0:00:21]} 31. Be3 {[%emt 0:01:04]} f4 {[%emt 0:00:05]} 32. Nd5 {[%emt 0:00:11]} fxe3 {[%emt 0:00:23]} 33. Nf6+ {[%emt 0:00:04]} Kg7 {[%emt 0:00:06]} 34. Nxg4 {[%emt 0:00:02]} e2 {[%emt 0:00:06]} 0-1

[Event "EYCC O18-ch 2024"]
[Site "Prague"]
[Date "2024.08.24"]
[Round "3.13"]
[White "Borrmann, Laurenz"]
[Black "Smolik, Jachym"]
[Result "1/2-1/2"]
[ECO "C54"]
[WhiteElo "2427"]
[BlackElo "2290"]
[Annotator "RC"]
[PlyCount "109"]
[EventDate "2024.08.19"]
[EventType "swiss"]
[EventCountry "CZE"]
[SourceTitle "playchess.com"]
[Source "ChessBase"]
[SourceQuality "1"]
[TimeControl "5400+30"]

1. e4 {[%emt 0:00:05]} e5 {[%emt 0:00:07]} 2. Nf3 {[%emt 0:00:36]} Nc6 {[%emt 0:00:06]} 3. Bc4 {[%emt 0:04:15]} Bc5 {[%emt 0:00:12]} 4. c3 {[%emt 0:03:17]} Nf6 {[%emt 0:01:06]} 5. d3 {[%emt 0:00:33]} d6 {[%emt 0:00:41]} 6. O-O {[%emt 0:03:21]} O-O {[%emt 0:00:53]} 7. b4 {[%emt 0:02:36]} Bb6 {[%emt 0:00:55]} 8. a4 {[%emt 0:00:11]} a5 {[%emt 0:00:23]} 9. b5 {[%emt 0:00:06]} Ne7 {[%emt 0:01:17]} 10. Nbd2 {[%emt 0:00:10]} Ng6 {[%emt 0:03:07]} 11. d4 {[%emt 0:00:06]} Bg4 {[%emt 0:12:59]} 12. Qc2 exd4 13. cxd4 {[%emt 0:01:01]} d5 {[%emt 0:10:54]} 14. exd5 {[%emt 0:01:56]} Nxd5 {[%emt 0:00:09]} 15. Ba3 {[%emt 0:06:05]} Re8 {[%emt 0:05:13]} 16. Rfe1 {[%emt 0:08:27]} Qd7 {[%emt 0:10:15]} 17. h3 {[%emt 0:10:36]} Be6 {[%emt 0:17:17]} 18. Rad1 {[%emt 0:17:10]} Ndf4 {[%emt 0:01:54]} 19. Bxe6 {[%emt 0:00:30]} Rxe6 {[%emt 0:00:30]} 20. Nc4 {[%emt 0:04:15]} Rae8 {[%emt 0:07:06]} 21. Rxe6 {[%emt 0:05:29]} Rxe6 22. d5 Re2 {[%emt 0:03:18]} 23. Nxb6 {[%emt 0:01:27]} cxb6 {[%emt 0:00:02]} 24. Qc4 {[%emt 0:03:31]} h6 {[%emt 0:00:09]} 25. d6 {[%emt 0:02:56]} Re8 26. Qc7 {[%emt 0:00:06]} Qxc7 {[%emt 0:03:54]} 27. dxc7 {[%emt 0:01:22]} Ne6 {[%emt 0:01:31]} 28. Rd6 {[%emt 0:09:02]} Rc8 29. Rxb6 Rxc7 {[%emt 0:00:37]} 30. Bd6 {[%emt 0:00:49]} Rd7 31. g3 f6 {[%emt 0:06:26]} 32. Nd2 {[%emt 0:02:26]} Ne7 {[%emt 0:02:23]} 33. Bxe7 {[%emt 0:00:21]} Rxe7 {[%emt 0:01:46]} 34. Nb3 {[%emt 0:00:09]} Kf7 {[%emt 0:01:22]} 35. f4 {[%emt 0:01:11]} Rc7 36. Nxa5 {[%emt 0:06:36]} Nc5 {[%emt 0:01:12]} 37. Kf2 {[%emt 0:02:00]} Ke7 {[%emt 0:00:56]} 38. f5 {[%emt 0:01:06]} Nxa4 {[%emt 0:02:22]} 39. Rxb7 {[%emt 0:00:59]} Rxb7 {[%emt 0:00:20]} 40. Nxb7 {[%emt 0:00:04]} Nc3 {[%emt 0:00:04]} 41. Nc5 {[%emt 0:00:50]} Nxb5 {[%emt 0:00:02]} 42. Ne6 {[%emt 0:00:09]} g6 {[%emt 0:04:13]} 43. Kf3 {[%emt 0:00:30]} Nd6 {[%emt 0:02:01]} 44. Nf4 {[%emt 0:00:18]} gxf5 {[%emt 0:00:30]} 45. Ng6+ {[%emt 0:00:08]} Kf7 {[%emt 0:00:26]} 46. Nh4 {[%emt 0:00:36]} Ke7 {[%emt 0:00:21]} 47. Kf4 {[%emt 0:00:30]} Ke6 {[%emt 0:00:02]} 48. Ng2 {[%emt 0:00:17]} Ne8 49. Ne3 {[%emt 0:00:31]} Ng7 {[%emt 0:00:49]} 50. g4 {[%emt 0:00:06]} fxg4 {[%emt 0:00:11]} 51. hxg4 {[%emt 0:00:03]} h5 {[%emt 0:00:10]} 52. gxh5 {[%emt 0:00:06]} Nxh5+ {[%emt 0:00:05]} 53. Ke4 {[%emt 0:00:06]} f5+ {[%emt 0:00:07]} 54. Nxf5 {[%emt 0:00:05]} Ng3+ {[%emt 0:00:03]} 55. Nxg3 1/2-1/2

[Event "EYCC O18-ch 2024"]
[Site "Prague"]
[Date "2024.08.24"]
[Round "3.14"]
[White "Sahakyan, Aleks"]
[Black "Pyrih, Roman"]
[Result "1-0"]
[ECO "D52"]
[WhiteElo "2287"]
[BlackElo "2422"]
[Annotator "RC"]
[PlyCount "127"]
[EventDate "2024.08.19"]
[EventType "swiss"]
[EventCountry "CZE"]
[SourceTitle "playchess.com"]
[Source "ChessBase"]
[SourceQuality "1"]
[TimeControl "5400+30"]

1. d4 {[%emt 0:00:03]} d5 {[%emt 0:00:55]} 2. c4 {[%emt 0:00:01]} e6 {[%emt 0:00:05]} 3. Nf3 {[%emt 0:00:03]} Nf6 {[%emt 0:00:08]} 4. Nc3 {[%emt 0:00:03]} c6 {[%emt 0:00:05]} 5. Bg5 {[%emt 0:00:13]} Nbd7 {[%emt 0:00:21]} 6. e3 {[%emt 0:00:42]} h6 {[%emt 0:00:10]} 7. Bh4 {[%emt 0:00:43]} Be7 {[%emt 0:00:08]} 8. Rc1 {[%emt 0:02:46]} O-O {[%emt 0:00:13]} 9. a3 {[%emt 0:00:02]} b6 {[%emt 0:06:30]} 10. cxd5 {[%emt 0:08:18]} cxd5 {[%emt 0:00:11]} 11. Bg3 {[%emt 0:06:49]} a6 {[%emt 0:04:25]} 12. Na2 {[%emt 0:04:38]} Ne4 {[%emt 0:04:24]} 13. Bc7 {[%emt 0:02:05]} Qe8 {[%emt 0:00:02]} 14. Nd2 {[%emt 0:03:25]} Bb7 {[%emt 0:01:21]} 15. Nxe4 {[%emt 0:05:19]} dxe4 {[%emt 0:00:18]} 16. Be2 {[%emt 0:00:03]} Rc8 {[%emt 0:03:37]} 17. O-O {[%emt 0:02:00]} b5 {[%emt 0:02:25]} 18. a4 {[%emt 0:10:47]} bxa4 {[%emt 0:02:34]} 19. Qxa4 {[%emt 0:01:53]} Nf6 {[%emt 0:00:03]} 20. Qxe8 {[%emt 0:02:38]} Rfxe8 {[%emt 0:00:04]} 21. Ba5 {[%emt 0:04:20]} Bd5 {[%emt 0:04:34]} 22. Nc3 {[%emt 0:07:09]} Rb8 {[%emt 0:01:26]} 23. Na4 {[%emt 0:01:11]} Rb7 {[%emt 0:08:38]} 24. Ra1 {[%emt 0:07:55]} Reb8 {[%emt 0:03:24]} 25. Rfc1 {[%emt 0:05:23]} Bd6 {[%emt 0:04:19]} 26. Bc3 {[%emt 0:01:45]} Nd7 {[%emt 0:02:37]} 27. Bxa6 {[%emt 0:05:16]} Ra7 {[%emt 0:00:00]} 28. Be2 {[%emt 0:00:01]} Bb3 {[%emt 0:00:59]} 29. Bd1 {[%emt 0:02:19]} Bxd1 {[%emt 0:00:05]} 30. Rxd1 {[%emt 0:00:02]} Rba8 {[%emt 0:00:02]} 31. b3 {[%emt 0:00:09]} Rb8 {[%emt 0:00:21]} 32. Nc5 {[%emt 0:02:43]} Rxa1 {[%emt 0:00:58]} 33. Rxa1 {[%emt 0:00:29]} Bxc5 {[%emt 0:00:19]} 34. dxc5 {[%emt 0:00:31]} Nxc5 {[%emt 0:00:05]} 35. b4 {[%emt 0:00:08]} Nd3 {[%emt 0:00:02]} 36. Rb1 {[%emt 0:00:28]} Rb5 {[%emt 0:03:33]} 37. f3 {[%emt 0:01:47]} f5 {[%emt 0:00:10]} 38. Kf1 {[%emt 0:01:09]} exf3 {[%emt 0:03:28]} 39. gxf3 {[%emt 0:00:07]} e5 {[%emt 0:00:01]} 40. Ke2 {[%emt 0:07:31]} e4 {[%emt 0:00:02]} 41. h4 {[%emt 0:00:22]} Kf7 {[%emt 0:02:34]} 42. Rg1 {[%emt 0:02:41]} g6 {[%emt 0:02:05]} 43. fxe4 {[%emt 0:00:53]} fxe4 {[%emt 0:04:28]} 44. Rf1+ {[%emt 0:00:01]} Rf5 {[%emt 0:00:45]} 45. Rxf5+ {[%emt 0:01:04]} gxf5 {[%emt 0:00:01]} 46. b5 {[%emt 0:00:01]} f4 {[%emt 0:04:40]} 47. exf4 {[%emt 0:00:55]} Nxf4+ {[%emt 0:03:40]} 48. Ke3 {[%emt 0:00:01]} Nd5+ {[%emt 0:00:21]} 49. Kd4 {[%emt 0:00:01]} Ke6 {[%emt 0:05:16]} 50. Bd2 {[%emt 0:00:02]} e3 {[%emt 0:12:00]} 51. Bxe3 {[%emt 0:00:11]} Ne7 {[%emt 0:00:03]} 52. Ke4 {[%emt 0:00:57]} h5 {[%emt 0:00:01]} 53. Bf4 {[%emt 0:02:07]} Nd5 {[%emt 0:03:45]} 54. Be5 {[%emt 0:00:30]} Nb6 {[%emt 0:01:03]} 55. Bd4 {[%emt 0:00:40]} Nc4 {[%emt 0:01:08]} 56. Kf4 {[%emt 0:01:09]} Kd5 {[%emt 0:00:11]} 57. b6 {[%emt 0:01:00]} Kc6 {[%emt 0:03:42]} 58. Kg5 {[%emt 0:00:19]} Nd2 59. Kxh5 {[%emt 0:00:11]} Nf3 {[%emt 0:00:02]} 60. Bf2 {[%emt 0:00:21]} Kb7 {[%emt 0:00:05]} 61. Kg4 {[%emt 0:00:15]} Ne5+ {[%emt 0:00:02]} 62. Kf5 {[%emt 0:00:14]} Nc4 {[%emt 0:00:49]} 63. h5 {[%emt 0:00:09]} Nd6+ {[%emt 0:00:02]} 64. Kg6 {[%emt 0:00:15]} 1-0

[Event "EYCC O18-ch 2024"]
[Site "Prague"]
[Date "2024.08.24"]
[Round "3.14"]
[White "Anacak, Hasan Gunes"]
[Black "Seidl, Jan"]
[Result "0-1"]
[ECO "B23"]
[WhiteElo "2071"]
[BlackElo "2276"]
[Annotator "RC"]
[PlyCount "106"]
[EventDate "2024.08.19"]
[EventType "swiss"]
[EventCountry "CZE"]
[SourceTitle "playchess.com"]
[Source "ChessBase"]
[SourceQuality "1"]
[TimeControl "5400+30"]

1. e4 {[%emt 0:00:45]} c5 {[%emt 0:00:06]} 2. Nc3 {[%emt 0:03:50]} d6 {[%emt 0:00:37]} 3. d4 {[%emt 0:00:54]} cxd4 {[%emt 0:00:05]} 4. Qxd4 {[%emt 0:00:04]} Nc6 {[%emt 0:00:24]} 5. Qd2 {[%emt 0:00:33]} g6 {[%emt 0:07:01]} 6. b3 {[%emt 0:00:05]} Bh6 {[%emt 0:00:06]} 7. f4 {[%emt 0:00:05]} e5 {[%emt 0:01:05]} 8. Nb5 {[%emt 0:12:42]} Bxf4 {[%emt 0:05:18]} 9. Qxd6 {[%emt 0:00:26]} Qxd6 {[%emt 0:03:57]} 10. Nxd6+ {[%emt 0:00:06]} Kf8 {[%emt 0:00:05]} 11. Ba3 {[%emt 0:15:35]} Nge7 {[%emt 0:09:27]} 12. c3 {[%emt 0:13:36]} Kg7 {[%emt 0:05:21]} 13. Bc4 {[%emt 0:00:29]} f5 {[%emt 0:03:19]} 14. Ne2 {[%emt 0:03:15]} Be3 {[%emt 0:07:17]} 15. exf5 {[%emt 0:22:24]} Nxf5 {[%emt 0:09:07]} 16. Rf1 {[%emt 0:04:37]} Nxd6 {[%emt 0:08:10]} 17. Bxd6 {[%emt 0:00:37]} Bf5 {[%emt 0:00:05]} 18. Ng3 {[%emt 0:01:23]} Rad8 {[%emt 0:01:19]} 19. Rd1 {[%emt 0:04:01]} Bg4 {[%emt 0:03:12]} 20. Rf7+ {[%emt 0:00:51]} Kh6 {[%emt 0:00:05]} 21. Rd3 {[%emt 0:03:10]} Bf4 {[%emt 0:00:45]} 22. h3 {[%emt 0:02:34]} Rxd6 {[%emt 0:05:34]} 23. Rxd6 {[%emt 0:01:45]} Bxg3+ {[%emt 0:00:05]} 24. Kf1 {[%emt 0:00:29]} Bc8 {[%emt 0:01:58]} 25. Rdf6 {[%emt 0:03:21]} Bh4 {[%emt 0:04:55]} 26. Rf3 {[%emt 0:00:15]} Rd8 {[%emt 0:02:17]} 27. Rf8 {[%emt 0:00:48]} Be7 {[%emt 0:01:12]} 28. Rxd8 {[%emt 0:00:46]} Nxd8 {[%emt 0:00:37]} 29. Bd5 {[%emt 0:01:18]} Kg7 {[%emt 0:01:25]} 30. b4 {[%emt 0:02:07]} Be6 {[%emt 0:02:36]} 31. Bxe6 {[%emt 0:00:53]} Nxe6 {[%emt 0:00:05]} 32. Rd3 {[%emt 0:00:03]} Kf6 {[%emt 0:02:36]} 33. a3 {[%emt 0:01:08]} Nd8 {[%emt 0:01:32]} 34. c4 {[%emt 0:00:06]} Ke6 {[%emt 0:00:19]} 35. h4 {[%emt 0:02:03]} Nc6 {[%emt 0:01:10]} 36. h5 {[%emt 0:00:05]} g5 {[%emt 0:01:42]} 37. Kf2 {[%emt 0:00:32]} Nd4 {[%emt 0:00:31]} 38. g4 {[%emt 0:00:43]} Nc6 {[%emt 0:07:35]} 39. Ke3 {[%emt 0:00:22]} Nd8 {[%emt 0:01:04]} 40. Ke4 {[%emt 0:00:30]} Nf7 {[%emt 0:00:05]} 41. c5 {[%emt 0:00:11]} Nh6 {[%emt 0:00:06]} 42. Rg3 {[%emt 0:00:45]} Ng8 {[%emt 0:00:09]} 43. Rc3 {[%emt 0:00:40]} Nf6+ {[%emt 0:00:06]} 44. Kf3 {[%emt 0:00:05]} e4+ {[%emt 0:01:08]} 45. Kg3 {[%emt 0:00:04]} Kd5 {[%emt 0:02:10]} 46. Rc1 {[%emt 0:00:03]} Kd4 {[%emt 0:02:40]} 47. c6 {[%emt 0:00:26]} bxc6 {[%emt 0:00:04]} 48. Rxc6 {[%emt 0:00:06]} Kd3 {[%emt 0:01:25]} 49. Re6 {[%emt 0:01:46]} Nd5 {[%emt 0:00:05]} 50. Kf2 {[%emt 0:00:15]} Bf6 {[%emt 0:00:43]} 51. Rd6 {[%emt 0:00:13]} Bd4+ {[%emt 0:00:26]} 52. Ke1 {[%emt 0:00:06]} Nf4 {[%emt 0:00:33]} 53. Rd7 {[%emt 0:00:07]} e3 {[%emt 0:00:16]} 0-1

[Event "EYCC O18-ch 2024"]
[Site "Prague"]
[Date "2024.08.24"]
[Round "3.15"]
[White "Piliposyan, Robert"]
[Black "Bokhnak, Timofey"]
[Result "1-0"]
[ECO "D37"]
[WhiteElo "2376"]
[BlackElo "2273"]
[Annotator "RC"]
[PlyCount "83"]
[EventDate "2024.08.19"]
[EventType "swiss"]
[EventCountry "CZE"]
[SourceTitle "playchess.com"]
[Source "ChessBase"]
[SourceQuality "1"]
[TimeControl "5400+30"]

1. d4 {[%emt 0:00:03]} Nf6 {[%emt 0:00:12]} 2. c4 {[%emt 0:00:13]} e6 {[%emt 0:00:05]} 3. Nf3 {[%emt 0:00:04]} d5 {[%emt 0:00:04]} 4. Nc3 {[%emt 0:00:04]} Be7 {[%emt 0:00:05]} 5. Bf4 {[%emt 0:00:05]} O-O {[%emt 0:00:10]} 6. e3 {[%emt 0:00:04]} Nbd7 {[%emt 0:00:05]} 7. Be2 {[%emt 0:00:38]} dxc4 {[%emt 0:00:40]} 8. O-O {[%emt 0:02:32]} a6 {[%emt 0:01:41]} 9. a4 {[%emt 0:01:00]} c5 {[%emt 0:02:18]} 10. d5 {[%emt 0:01:09]} exd5 {[%emt 0:02:39]} 11. Nxd5 {[%emt 0:00:24]} Nxd5 {[%emt 0:00:35]} 12. Qxd5 {[%emt 0:00:05]} Nb8 {[%emt 0:14:49]} 13. Bxc4 {[%emt 0:15:45]} Nc6 {[%emt 0:12:32]} 14. Qh5 {[%emt 0:10:00]} Be6 {[%emt 0:06:48]} 15. Bxe6 {[%emt 0:07:40]} fxe6 {[%emt 0:00:05]} 16. Rfd1 {[%emt 0:00:53]} Qe8 {[%emt 0:07:04]} 17. Qg4 {[%emt 0:08:04]} Rf6 {[%emt 0:02:23]} 18. Bg3 {[%emt 0:06:00]} Rd8 {[%emt 0:04:27]} 19. Qc4 {[%emt 0:04:19]} Na5 {[%emt 0:03:19]} 20. Qc2 {[%emt 0:01:33]} Rf5 {[%emt 0:01:56]} 21. Bc7 {[%emt 0:03:07]} Rxd1+ {[%emt 0:00:09]} 22. Rxd1 {[%emt 0:00:06]} Nc6 {[%emt 0:00:56]} 23. Qb3 {[%emt 0:03:32]} Qc8 {[%emt 0:00:22]} 24. Bg3 {[%emt 0:00:43]} Nb4 {[%emt 0:02:40]} 25. Ne5 {[%emt 0:10:10]} Bf6 {[%emt 0:05:49]} 26. Nd7 {[%emt 0:05:04]} Rd5 {[%emt 0:00:43]} 27. Nxf6+ {[%emt 0:01:22]} gxf6 {[%emt 0:00:06]} 28. e4 {[%emt 0:01:19]} Rxd1+ {[%emt 0:06:57]} 29. Qxd1 {[%emt 0:00:14]} e5 {[%emt 0:01:18]} 30. Bh4 {[%emt 0:05:21]} Qe6 {[%emt 0:01:23]} 31. Qd8+ {[%emt 0:00:56]} Kf7 {[%emt 0:00:01]} 32. Qc7+ {[%emt 0:05:56]} Qe7 {[%emt 0:00:02]} 33. Qc8 {[%emt 0:00:49]} Nd3 {[%emt 0:04:29]} 34. Qf5 {[%emt 0:01:21]} Kg7 {[%emt 0:02:49]} 35. Bxf6+ {[%emt 0:00:17]} Qxf6 {[%emt 0:00:12]} 36. Qd7+ {[%emt 0:00:03]} Qf7 {[%emt 0:00:09]} 37. Qxd3 {[%emt 0:00:02]} Qa2 {[%emt 0:06:00]} 38. Qd7+ {[%emt 0:00:10]} Kg6 {[%emt 0:01:57]} 39. Qf5+ {[%emt 0:00:16]} Kg7 {[%emt 0:00:12]} 40. Qxe5+ {[%emt 0:00:02]} Kf7 {[%emt 0:00:06]} 41. Qc7+ {[%emt 0:01:29]} Kg6 {[%emt 0:00:06]} 42. Qb6+ {[%emt 0:00:06]} 1-0

[Event "EYCC O18-ch 2024"]
[Site "Prague"]
[Date "2024.08.24"]
[Round "3.15"]
[White "Fishchuk, Vladyslav"]
[Black "Rak, Martin"]
[Result "1-0"]
[ECO "E10"]
[WhiteElo "2264"]
[BlackElo "2104"]
[Annotator "RC"]
[PlyCount "67"]
[EventDate "2024.08.19"]
[EventType "swiss"]
[EventCountry "CZE"]
[SourceTitle "playchess.com"]
[Source "ChessBase"]
[SourceQuality "1"]
[TimeControl "5400+30"]

1. d4 {[%emt 0:00:02]} Nf6 {[%emt 0:00:08]} 2. c4 {[%emt 0:00:03]} e6 {[%emt 0:00:08]} 3. Nf3 {[%emt 0:00:05]} d5 {[%emt 0:00:12]} 4. g3 {[%emt 0:00:04]} Bb4+ {[%emt 0:00:08]} 5. Bd2 {[%emt 0:00:04]} Be7 {[%emt 0:00:07]} 6. Bg2 {[%emt 0:00:06]} O-O {[%emt 0:00:22]} 7. O-O {[%emt 0:00:07]} Nbd7 {[%emt 0:00:08]} 8. Bc3 {[%emt 0:00:06]} c6 {[%emt 0:02:15]} 9. Nbd2 {[%emt 0:00:22]} b6 {[%emt 0:02:50]} 10. b4 {[%emt 0:01:31]} dxc4 {[%emt 0:04:23]} 11. Nxc4 {[%emt 0:04:20]} Nd5 {[%emt 0:04:46]} 12. Qb3 {[%emt 0:04:45]} Nxc3 {[%emt 0:04:07]} 13. Qxc3 {[%emt 0:00:08]} Bb7 {[%emt 0:00:13]} 14. Nfe5 {[%emt 0:01:34]} Rc8 {[%emt 0:01:01]} 15. Rac1 {[%emt 0:01:05]} f6 {[%emt 0:06:05]} 16. Nd3 {[%emt 0:02:23]} Re8 {[%emt 0:01:44]} 17. Rfd1 {[%emt 0:01:05]} Nf8 {[%emt 0:03:14]} 18. Qb3 {[%emt 0:02:03]} Kh8 {[%emt 0:04:07]} 19. e3 {[%emt 0:02:41]} Ba8 {[%emt 0:10:01]} 20. h4 {[%emt 0:01:27]} Bd6 {[%emt 0:01:52]} 21. Rd2 {[%emt 0:15:19]} Bb8 {[%emt 0:05:37]} 22. Rdc2 {[%emt 0:04:30]} e5 {[%emt 0:04:37]} 23. dxe5 {[%emt 0:00:14]} fxe5 {[%emt 0:00:28]} 24. Nd2 {[%emt 0:01:02]} Bd6 {[%emt 0:17:10]} 25. Bxc6 {[%emt 0:03:02]} Rxc6 {[%emt 0:00:31]} 26. Rxc6 {[%emt 0:00:30]} Qe7 {[%emt 0:03:13]} 27. Ne4 {[%emt 0:02:12]} Bb8 {[%emt 0:00:17]} 28. b5 {[%emt 0:01:04]} Qd7 {[%emt 0:01:07]} 29. Nb4 {[%emt 0:00:41]} Qg4 {[%emt 0:02:28]} 30. Qf7 {[%emt 0:03:26]} Rd8 {[%emt 0:00:23]} 31. Nf6 {[%emt 0:01:33]} Rd1+ {[%emt 0:01:28]} 32. Rxd1 {[%emt 0:00:08]} Qxd1+ {[%emt 0:00:17]} 33. Kh2 {[%emt 0:00:07]} Bxc6 {[%emt 0:00:57]} 34. Qxf8# {[%emt 0:00:08]} 1-0

[Event "EYCC O18-ch 2024"]
[Site "Prague"]
[Date "2024.08.24"]
[Round "3.16"]
[White "Karolczuk, Iwo"]
[Black "Valiyev, Shahin"]
[Result "1/2-1/2"]
[ECO "D02"]
[WhiteElo "2356"]
[BlackElo "2245"]
[Annotator "RC"]
[PlyCount "65"]
[EventDate "2024.08.19"]
[EventType "swiss"]
[EventCountry "CZE"]
[SourceTitle "playchess.com"]
[Source "ChessBase"]
[SourceQuality "1"]
[TimeControl "5400+30"]

1. d4 {[%emt 0:00:35]} d5 {[%emt 0:00:16]} 2. Nf3 {[%emt 0:01:21]} Nf6 {[%emt 0:00:10]} 3. c4 {[%emt 0:00:12]} e6 {[%emt 0:00:07]} 4. g3 {[%emt 0:00:19]} Bb4+ {[%emt 0:00:16]} 5. Nbd2 {[%emt 0:00:10]} dxc4 {[%emt 0:01:29]} 6. a3 {[%emt 0:01:04]} Bxd2+ {[%emt 0:06:36]} 7. Bxd2 {[%emt 0:01:43]} b5 {[%emt 0:01:23]} 8. a4 {[%emt 0:03:27]} c6 {[%emt 0:00:24]} 9. Bg2 {[%emt 0:00:56]} Bb7 {[%emt 0:01:08]} 10. O-O {[%emt 0:02:07]} O-O {[%emt 0:01:44]} 11. Qc2 {[%emt 0:04:30]} a6 {[%emt 0:04:42]} 12. Rfd1 {[%emt 0:05:58]} Nbd7 {[%emt 0:12:12]} 13. Ne5 {[%emt 0:18:56]} Qc7 {[%emt 0:05:40]} 14. Nxd7 {[%emt 0:05:50]} Qxd7 {[%emt 0:00:44]} 15. e4 {[%emt 0:03:28]} h6 {[%emt 0:05:28]} 16. Bb4 {[%emt 0:04:13]} Rfe8 {[%emt 0:06:50]} 17. a5 {[%emt 0:02:15]} Qc7 {[%emt 0:02:51]} 18. e5 {[%emt 0:04:42]} c5 {[%emt 0:13:44]} 19. Bxb7 {[%emt 0:00:59]} Qxb7 {[%emt 0:00:06]} 20. exf6 {[%emt 0:00:14]} cxb4 {[%emt 0:00:07]} 21. Qd2 {[%emt 0:01:09]} c3 {[%emt 0:06:07]} 22. bxc3 {[%emt 0:00:30]} bxc3 {[%emt 0:00:04]} 23. Qxc3 {[%emt 0:00:07]} gxf6 {[%emt 0:00:02]} 24. d5 {[%emt 0:00:45]} exd5 {[%emt 0:01:11]} 25. Qxf6 {[%emt 0:01:02]} Re6 {[%emt 0:00:09]} 26. Qf5 {[%emt 0:00:58]} Rd8 {[%emt 0:02:46]} 27. Rd4 {[%emt 0:00:50]} Qc6 {[%emt 0:04:15]} 28. Rad1 {[%emt 0:00:38]} Rf6 {[%emt 0:01:14]} 29. Qd3 {[%emt 0:02:46]} Qc5 {[%emt 0:07:03]} 30. h4 {[%emt 0:01:37]} Re8 {[%emt 0:01:59]} 31. Qd2 {[%emt 0:02:59]} Rd8 {[%emt 0:03:57]} 32. Rg4+ {[%emt 0:04:13]} Kf8 {[%emt 0:01:37]} 33. Rd4 {[%emt 0:08:07]} 1/2-1/2